bitfinex-derivatives/quotes_BTCF0:USTF0_20251220
["timestamp","ask_amount","ask_price","bid_price","bid_amount"]
[1766236976438,0.00017028,88048.0,88032.0,0.0113645]
[1766236976638,0.0113606,88064.0,88037.0,0.0113639]
[1766236976838,0.02747614,88063.0,88037.0,0.0113639]
[1766236977028,0.02747614,88062.0,88037.0,0.0113639]
[1766236977230,0.02747614,88061.0,88037.0,0.0113639]
[1766236977436,0.02747614,88061.0,88031.0,0.00017042]
[1766236977437,0.02747614,88060.0,88042.0,0.0113632]
[1766236977630,0.0113602,88066.0,88043.0,0.00396]
[1766236977830,0.02748191,88065.0,88043.0,0.00396]
[1766236978140,0.0113602,88066.0,88043.0,0.00396]
[1766236980739,0.4443765,88070.0,88049.0,0.00017042]
[1766236980938,0.0113595,88072.0,88050.0,0.0113622]
[1766236981132,0.02749804,88071.0,88055.0,0.0113615]
[1766236981332,0.00333561,88075.0,88057.0,0.0113613]
[1766236981538,0.0275017,88074.0,88057.0,0.0113613]
[1766236981836,0.0113591,88075.0,88056.0,0.0048]
[1766236982042,0.02750173,88074.0,88056.0,0.0048]
[1766236982239,0.02750173,88073.0,88056.0,0.0048]
[1766236982439,0.02750173,88072.0,88056.0,0.0048]
[1766236982742,0.02750173,88071.0,88056.0,0.0048]
[1766236982936,0.0113594,88072.0,88056.0,0.0048]
[1766236983141,0.0113594,88072.0,88049.0,0.00017042]
[1766236983142,0.0113605,88064.0,88054.0,0.0024]
[1766236987649,0.01136,88068.0,88054.0,0.0024]
[1766236987849,0.0113602,88066.0,88054.0,0.0024]
[1766236989940,0.4443765,88070.0,88054.0,0.0024]
[1766236989941,0.0113593,88073.0,88054.0,0.0024]
[1766236990136,0.02753708,88072.0,88055.0,0.0113616]
[1766236990336,0.0113578,88085.0,88060.0,0.0113609]
[1766236990640,0.4557362,88070.0,88054.0,0.0024]
[1766236990844,0.0113597,88070.0,88054.0,0.0024]
[1766236991440,0.0113587,88078.0,88054.0,0.0024]
[1766236991646,0.4443765,88080.0,88057.0,0.00017032]
[1766236991836,0.00016996,88081.0,88057.0,0.00017032]
[1766236993249,0.00016996,88081.0,88061.0,0.0113607]
[1766236995052,0.00016996,88081.0,88064.0,0.0113603]
[1766236995254,0.00016996,88081.0,88065.0,0.00476]
[1766236997955,0.00016996,88081.0,88066.0,0.0113601]
[1766236999238,0.00016996,88081.0,88065.0,0.00476]
[1766237004352,0.06018741,88115.0,88070.0,0.30283071]
[1766237004646,0.0113567,88094.0,88066.0,0.0113602]
[1766237004852,0.0113567,88094.0,88065.0,0.00476]
[1766237004853,0.0113567,88094.0,88069.0,0.0113597]
[1766237005349,0.0113567,88094.0,88073.0,0.00017032]
[1766237006246,0.0113561,88098.0,88073.0,0.00017032]
[1766237006848,0.0113566,88095.0,88073.0,0.00017032]
[1766237008256,0.0113569,88092.0,88073.0,0.00017032]
[1766237009046,0.0113563,88097.0,88073.0,0.00017032]
[1766237009258,0.0113563,88097.0,88074.0,0.0113591]
[1766237010360,0.30283071,88100.0,88073.0,0.00017032]
[1766237010656,0.011357,88091.0,88073.0,0.00017032]
[1766237010955,0.30283071,88083.0,88038.0,1.44872]
[1766237011160,0.30283071,88074.0,88045.0,0.0113628]
[1766237011552,0.30283071,88074.0,88048.0,0.0113624]
[1766237011553,0.0113595,88072.0,88048.0,0.0113624]
[1766237011946,0.00017032,88069.0,88051.0,0.00017032]
[1766237012261,0.00017032,88069.0,88052.0,0.00384]
[1766237014659,0.01136,88068.0,88052.0,0.00384]
[1766237016061,0.01153012,88069.0,88043.0,0.011363]
[1766237016253,0.0113602,88066.0,88046.0,0.00196]
[1766237017060,0.0113602,88066.0,88047.0,0.00017032]
[1766237019063,0.30293939,88060.0,88047.0,0.00017032]
[1766237020165,0.0113602,88066.0,88047.0,0.00017032]
[1766237020866,0.0113606,88063.0,88047.0,0.00017032]
[1766237022757,0.0113601,88067.0,88047.0,0.00017032]
[1766237023463,0.00017032,88069.0,88050.0,0.0113621]
[1766237023664,0.0113599,88068.0,88047.0,0.00017032]
[1766237024665,0.01153012,88069.0,88047.0,0.00017032]
[1766237026147,0.0113602,88066.0,88047.0,0.00017032]
[1766237026347,0.0113601,88067.0,88047.0,0.00017032]
[1766237028454,0.00017032,88069.0,88047.0,0.00017032]
[1766237028455,0.01136,88068.0,88047.0,0.00017032]
[1766237028654,0.0113604,88065.0,88047.0,0.00017032]
[1766237028855,0.30293939,88060.0,88032.0,1.44876]
[1766237029057,0.30293939,88050.0,88033.0,0.0288]
[1766237029266,0.31430169,88050.0,88033.0,0.0288]
[1766237029856,0.30310971,88050.0,88033.0,0.02897032]
[1766237030763,0.00017032,88050.0,88033.0,0.02897032]
[1766237034173,0.30310971,88050.0,88033.0,0.02897032]
[1766237036569,0.00017032,88050.0,88033.0,0.02897032]
[1766237037469,0.20221619,88050.0,88033.0,0.02897032]
[1766237037865,0.20221619,88050.0,88033.0,0.00017032]
[1766237038066,0.20221619,88050.0,88034.0,0.02876]
[1766237038261,0.0113628,88046.0,88007.0,0.0812475]
[1766237038470,0.20204587,88040.0,88020.0,0.20204587]
[1766237038671,0.20204587,88040.0,88028.0,0.011365]
[1766237038857,0.00017032,88050.0,88029.0,0.02876]
[1766237039062,0.20221619,88050.0,88037.0,0.0113639]
[1766237039270,0.20221619,88050.0,88038.0,0.02876]
[1766237039469,0.00017032,88050.0,88038.0,0.02876]
[1766237039663,0.01153262,88050.0,88038.0,0.02876]
[1766237039868,0.00017032,88050.0,88038.0,0.02876]
[1766237042869,0.01136,88068.0,88040.0,0.0113635]
[1766237043073,0.02876,88067.0,88040.0,0.3030247]
[1766237043277,0.0113594,88073.0,88040.0,0.3030247]
[1766237043572,0.0113594,88073.0,88049.0,0.0113623]
[1766237043763,0.0113594,88073.0,88050.0,0.02876]
[1766237043959,0.00017032,88070.0,88053.0,0.00017032]
[1766237049264,0.00017032,88070.0,88057.0,0.0113613]
[1766237049471,0.00017032,88070.0,88060.0,0.0113609]
[1766237049665,0.3030247,88090.0,88061.0,0.02876]
[1766237049870,0.0113583,88081.0,88061.0,0.02876]
[1766237050577,0.00017032,88080.0,88061.0,0.02876]
[1766237051077,0.0113585,88079.0,88061.0,0.02876]
[1766237055480,0.0113591,88075.0,88061.0,0.02876]
[1766237055979,0.0113586,88079.0,88061.0,0.02876]
[1766237056775,0.0113589,88076.0,88061.0,0.02876]
[1766237058078,0.00017032,88080.0,88061.0,0.02876]
[1766237059182,0.00017032,88080.0,88062.0,0.0113606]
[1766237059367,0.20204694,88080.0,88062.0,0.0113606]
[1766237059973,0.00017032,88080.0,88062.0,0.0113606]
[1766237060478,3.2e-07,88080.0,88068.0,0.0113598]
[1766237060674,3.2e-07,88080.0,88061.0,0.02876]
[1766237061076,0.01135872,88080.0,88061.0,0.02876]
[1766237061280,0.21323534,88080.0,88061.0,0.02876]
[1766237061577,3.2e-07,88080.0,88062.0,0.0113607]
[1766237063682,3.2e-07,88080.0,88061.0,0.02876]
[1766237063881,0.21323832,88080.0,88061.0,0.02876]
[1766237064386,0.01135872,88080.0,88061.0,0.02876]
[1766237064572,3.2e-07,88080.0,88062.0,0.0113607]
[1766237065075,3.2e-07,88080.0,88065.0,0.0113603]
[1766237065471,3.2e-07,88080.0,88061.0,0.02876]
[1766237066184,3.2e-07,88080.0,88070.0,0.2018796]
[1766237066383,3.2e-07,88080.0,88071.0,0.02872]
[1766237068679,3.2e-07,88080.0,88063.0,1.44888]
[1766237068885,3.2e-07,88080.0,88064.0,0.02868]
[1766237069586,3.2e-07,88080.0,88065.0,0.0113603]
[1766237070484,0.0400363,88097.0,88070.0,0.2018796]
[1766237070676,0.0113567,88093.0,88066.0,0.0113601]
[1766237071478,0.00017032,88088.0,88071.0,0.00017032]
[1766237071692,0.00017032,88088.0,88072.0,0.02868]
[1766237076291,0.00017032,88088.0,88073.0,0.0113592]
[1766237076888,0.00017032,88088.0,88076.0,0.0113588]
[1766237077094,3.2e-07,88088.0,88076.0,0.0113588]
[1766237077485,3.2e-07,88088.0,88072.0,0.0400393]
[1766237079496,3.2e-07,88088.0,88072.0,0.02868]
[1766237082693,0.0113575,88087.0,88072.0,0.02868]
[1766237086307,3.2e-07,88088.0,88072.0,0.02868]
[1766237086308,0.20187009,88082.0,88072.0,0.02868]
[1766237086604,0.0113577,88086.0,88072.0,0.02868]
[1766237094008,0.011358,88083.0,88072.0,0.02868]
[1766237094301,0.0113575,88087.0,88072.0,0.02868]
[1766237096600,3.2e-07,88088.0,88072.0,0.02868]
[1766237098012,0.0113575,88087.0,88072.0,0.02868]
[1766237098401,0.0113579,88084.0,88072.0,0.02868]
[1766237100214,3.2e-07,88088.0,88072.0,0.02868]
[1766237100412,0.011358,88084.0,88072.0,0.02868]
[1766237100613,3.2e-07,88088.0,88072.0,0.02868]
[1766237100802,0.20187009,88082.0,88072.0,0.02868]
[1766237101312,0.0113575,88087.0,88071.0,0.00017032]
[1766237101814,0.40374018,88081.0,88058.0,1.44868]
[1766237102113,0.20187009,88070.0,88059.0,0.0088]
[1766237102298,0.0113585,88079.0,88059.0,0.0088]
[1766237102806,0.0113585,88079.0,88060.0,0.00017032]
[1766237103010,3.2e-07,88088.0,88070.0,0.0113596]
[1766237103210,3.2e-07,88088.0,88075.0,0.011359]
[1766237107312,3.2e-07,88088.0,88072.0,0.0113593]
[1766237107614,3.2e-07,88088.0,88071.0,0.02868]
[1766237108417,0.0113576,88087.0,88071.0,0.02868]
[1766237109314,0.0113579,88084.0,88071.0,0.02868]
[1766237111512,3.2e-07,88088.0,88071.0,0.02868]
[1766237111712,3.2e-07,88088.0,88076.0,0.0113589]
[1766237112911,3.2e-07,88088.0,88079.0,0.0113585]
[1766237116621,3.2e-07,88088.0,88071.0,0.02868]
[1766237116622,3.2e-07,88088.0,88075.0,0.011359]
[1766237117111,3.2e-07,88088.0,88071.0,0.02868]
[1766237118121,3.2e-07,88088.0,88079.0,0.0113584]
[1766237118519,3.2e-07,88088.0,88082.0,0.011358]
[1766237118821,3.2e-07,88088.0,88083.0,0.02864]
[1766237119219,3.2e-07,88088.0,88084.0,0.0113579]
[1766237121118,1.44864,88117.0,88083.0,0.02864]
[1766237121119,0.0113541,88114.0,88090.0,0.011357]
[1766237121317,0.0113545,88111.0,88086.0,0.0113575]
[1766237121518,0.22880037,88110.0,88086.0,0.0113575]
[1766237121714,0.02693028,88109.0,88086.0,0.0113575]
[1766237121914,0.02693028,88108.0,88086.0,0.0113575]
[1766237122119,0.00017032,88106.0,88088.0,0.00017032]
[1766237123116,0.00017032,88106.0,88089.0,0.0113571]
[1766237124132,0.00017032,88106.0,88088.0,0.00017032]
[1766237125128,0.00017032,88106.0,88089.0,0.0113571]
[1766237125326,0.20177777,88110.0,88089.0,0.0113571]
[1766237125828,0.0113545,88111.0,88089.0,0.0113571]
[1766237126027,0.20177777,88110.0,88089.0,0.0113571]
[1766237126231,0.0113516,88133.0,88093.0,0.0113566]
[1766237126419,0.02691121,88120.0,88094.0,0.01308]
[1766237126620,0.21313227,88110.0,88094.0,0.01308]
[1766237127130,0.20177777,88110.0,88094.0,0.01308]
[1766237127331,0.011354,88114.0,88094.0,0.01308]
[1766237127630,0.20177777,88110.0,88094.0,0.01308]
[1766237128627,0.20177777,88110.0,88098.0,0.0113559]
[1766237128930,0.20177777,88120.0,88098.0,0.0113559]
[1766237129328,0.0113522,88128.0,88104.0,0.0113552]
[1766237129526,0.05553861,88127.0,88107.0,0.00017022]
[1766237129836,0.20177777,88130.0,88110.0,0.20177777]
[1766237130129,0.21312977,88130.0,88107.0,0.00017022]
[1766237130334,0.0113524,88127.0,88107.0,0.00017022]
[1766237131329,0.02864,88132.0,88107.0,0.00017022]
[1766237131330,0.20177777,88117.0,88107.0,0.00017022]
[1766237131630,0.0113537,88116.0,88107.0,2e-08]
[1766237131830,0.20177777,88117.0,88085.0,0.0113577]
[1766237131831,0.0113547,88109.0,88085.0,0.0113577]
[1766237132135,0.0113562,88098.0,88087.0,0.02864]
[1766237132335,0.40355554,88105.0,88076.0,1.4484]
[1766237132336,0.0113565,88095.0,88076.0,1.4484]
[1766237132534,0.20177777,88090.0,88077.0,0.02864]
[1766237134629,0.00016992,88092.0,88077.0,0.02864]
[1766237134834,0.20177777,88090.0,88077.0,0.0399987]
[1766237135032,0.00016992,88092.0,88077.0,0.02864]
[1766237135335,0.20177777,88100.0,88085.0,0.0113576]
[1766237135521,0.20177777,88100.0,88080.0,0.20177777]
[1766237135522,0.02864,88105.0,88088.0,0.0113573]
[1766237135727,0.20177777,88100.0,88088.0,0.0113573]
[1766237137032,0.02864,88109.0,88088.0,0.0113573]
[1766237137227,0.20177777,88100.0,88088.0,0.0113573]
[1766237138739,0.20177777,88100.0,88086.0,0.02864]
[1766237142337,0.02864,88103.0,88088.0,0.0113573]
[1766237143930,0.20177777,88110.0,88091.0,0.0113569]
[1766237144235,0.02864,88109.0,88091.0,0.0113569]
[1766237144631,0.20177777,88110.0,88091.0,0.0113569]
[1766237144829,0.20177777,88110.0,88095.0,0.0113563]
[1766237145022,0.20177777,88110.0,88095.0,0.0399963]
[1766237146434,0.02864,88113.0,88095.0,0.0399963]
[1766237146630,0.20177777,88110.0,88095.0,0.0399963]
[1766237147232,0.20177777,88110.0,88098.0,0.011356]
[1766237147438,0.02864,88116.0,88098.0,0.011356]
[1766237148439,0.02864,88115.0,88098.0,0.011356]
[1766237148640,0.02864,88116.0,88098.0,0.011356]
[1766237149138,0.21313107,88120.0,88100.0,0.20177777]
[1766237149139,0.20177777,88120.0,88100.0,0.20177777]
[1766237149340,0.20177777,88120.0,88105.0,0.011355]
[1766237149532,0.20177777,88120.0,88105.0,0.039995]
[1766237149730,0.20177777,88120.0,88105.0,0.02864]
[1766237151536,0.20177777,88115.0,88105.0,0.02864]
[1766237152133,0.011354,88114.0,88104.0,7e-05]
[1766237152448,0.21313177,88114.0,88103.0,0.02864]
[1766237152643,0.20177777,88113.0,88103.0,0.02864]
[1766237153529,0.0113547,88109.0,88094.0,1.4484]
[1766237153845,0.0113547,88109.0,88095.0,0.02864]
[1766237154042,0.0113547,88109.0,88096.0,0.02864]
[1766237154544,0.20177777,88106.0,88096.0,0.02864]
[1766237154746,0.0113547,88109.0,88096.0,7e-05]
[1766237154937,0.20177777,88106.0,88096.0,7e-05]
[1766237155534,0.21313287,88106.0,88095.0,0.00364]
[1766237155740,0.20177777,88105.0,88091.0,0.02864]
[1766237155940,0.02864,88109.0,88091.0,0.02864]
[1766237155941,0.20177777,88100.0,88091.0,0.02864]
[1766237158240,0.20178962,88100.0,88091.0,0.02864]
[1766237160445,0.02864,88105.0,88091.0,0.02864]
[1766237160644,0.20178962,88100.0,88091.0,0.02864]
[1766237162747,0.02864,88105.0,88091.0,0.02864]
[1766237163655,0.02864,88105.0,88092.0,0.0113568]
[1766237165959,0.02864,88109.0,88092.0,0.0113568]
[1766237166959,0.02864,88109.0,88095.0,0.0113564]
[1766237167575,0.20178962,88110.0,88095.0,0.0113564]
[1766237167576,0.23042962,88110.0,88095.0,0.0113564]
[1766237167881,0.02864,88110.0,88091.0,0.0399969]
[1766237168064,0.23042962,88110.0,88091.0,0.0399969]
[1766237168269,0.23042962,88110.0,88095.0,0.0113564]
[1766237168579,0.23042962,88110.0,88091.0,0.0399969]
[1766237169369,0.23042962,88110.0,88091.0,0.02864]
[1766237169571,0.23042962,88110.0,88087.0,0.00017022]
[1766237169572,0.02864,88110.0,88092.0,0.02864]
[1766237169774,0.40357924,88102.0,88073.0,1.4596792]
[1766237170077,0.20178962,88090.0,88076.0,0.0113588]
[1766237170967,0.20178962,88090.0,88074.0,0.02864]
[1766237170968,0.20178962,88090.0,88079.0,0.0113585]
[1766237173469,0.20178962,88090.0,88054.0,0.0113617]
[1766237173675,0.20178962,88090.0,88035.0,0.0568207]
[1766237173676,0.0113575,88087.0,88063.0,0.0113605]
[1766237173871,0.20178962,88080.0,88066.0,0.0113601]
[1766237174072,0.02864,88087.0,88070.0,0.21314922]
[1766237174276,0.0113561,88098.0,88074.0,0.0113591]
[1766237174477,0.20178962,88084.0,88077.0,0.00017032]
[1766237174672,0.20178962,88087.0,88072.0,0.02864]
[1766237174877,0.20178962,88082.0,88072.0,0.02864]
[1766237175581,0.02864,88089.0,88072.0,0.02864]
[1766237176184,0.20178962,88082.0,88072.0,0.02864]
[1766237177691,0.20178962,88082.0,88069.0,0.02864]
[1766237177879,0.20178962,88082.0,88068.0,0.02864]
[1766237179381,0.02864,88084.0,88068.0,0.02864]
[1766237179693,0.20178962,88080.0,88068.0,0.02864]
[1766237181185,0.20178962,88080.0,88069.0,0.0113598]
[1766237181484,0.02864,88084.0,88072.0,0.0113593]
[1766237182684,0.02864,88086.0,88072.0,0.0113593]
[1766237183384,0.02864,88086.0,88068.0,0.0399998]
[1766237183583,0.02864,88087.0,88071.0,0.0113595]
[1766237187087,0.02864,88087.0,88060.0,0.20185699]
[1766237187088,0.00017032,88095.0,88060.0,0.02864]
[1766237187293,0.0113577,88085.0,88060.0,0.02864]
[1766237187480,0.02864,88084.0,88060.0,0.02864]
[1766237187686,0.0399977,88085.0,88060.0,0.02864]
[1766237187995,0.02864,88085.0,88064.0,0.01153072]
[1766237188192,0.02864,88085.0,88067.0,0.0113599]
[1766237188981,0.20185699,88090.0,88064.0,0.00017032]
[1766237189187,0.02864,88089.0,88073.0,0.0113592]
[1766237190094,0.02864,88089.0,88070.0,0.02864]
[1766237190287,0.0113567,88094.0,88070.0,0.02864]
[1766237190288,0.0113567,88094.0,88074.0,0.0113591]
[1766237190488,0.02864,88093.0,88074.0,0.0113591]
[1766237190690,0.02864,88092.0,88074.0,0.0113591]
[1766237192296,0.02864,88092.0,88070.0,0.0399996]
[1766237192595,0.02864,88092.0,88074.0,0.0113591]
[1766237193709,0.02864,88092.0,88073.0,0.0113592]
[1766237197004,0.02864,88092.0,88077.0,0.0113588]
[1766237198307,0.01152682,88095.0,88077.0,0.0113588]
[1766237198707,0.01152682,88095.0,88073.0,0.0113592]
[1766237199702,0.01152682,88095.0,88070.0,0.02864]
[1766237199703,0.00017032,88095.0,88080.0,0.20183892]
[1766237199903,0.00017032,88095.0,88081.0,0.02864]
[1766237202900,0.00017032,88095.0,88082.0,0.0113581]
[1766237204301,0.00017032,88095.0,88081.0,0.02864]
[1766237205405,0.0113566,88094.0,88081.0,0.02864]
[1766237206314,0.00017032,88095.0,88081.0,0.0399982]
[1766237207411,0.0028,88107.0,88087.0,0.0113574]
[1766237208316,0.00017032,88106.0,88089.0,0.0113572]
[1766237208919,0.00017032,88106.0,88090.0,0.23047892]
[1766237209306,0.0113535,88118.0,88097.0,0.0113561]
[1766237209512,0.011353,88122.0,88100.0,0.0113557]
[1766237209713,0.0261976,88121.0,88100.0,0.0399957]
[1766237210019,0.015033,88122.0,88100.0,0.0399957]
[1766237210416,0.00017022,88120.0,88102.0,0.00017022]
[1766237211520,0.20200914,88120.0,88102.0,0.00017022]
[1766237212015,0.00017022,88120.0,88102.0,0.00017022]
[1766237212220,0.00017022,88120.0,88106.0,0.011355]
[1766237212417,0.00017022,88120.0,88102.0,0.00017022]
[1766237212719,0.20183892,88130.0,88111.0,0.0113543]
[1766237213620,0.20183892,88130.0,88110.0,0.00296]
[1766237213810,0.00017022,88129.0,88110.0,0.00296]
[1766237214521,0.01152232,88129.0,88110.0,0.00296]
[1766237214821,0.00017022,88129.0,88110.0,0.00296]
[1766237215313,0.0113522,88128.0,88110.0,0.00296]
[1766237215513,0.00017022,88129.0,88110.0,0.21615342]
[1766237215815,0.01152232,88129.0,88110.0,0.00296]
[1766237216021,0.00017022,88129.0,88110.0,0.00296]
[1766237216317,0.20183892,88120.0,88102.0,0.00017022]
[1766237216711,0.0113529,88123.0,88102.0,0.00017022]
[1766237218616,0.0113534,88119.0,88102.0,0.00017022]
[1766237220317,0.20183892,88120.0,88102.0,2.2e-07]
[1766237220518,0.0113545,88110.0,88099.0,2.2e-07]
[1766237221627,0.20183892,88112.0,88099.0,2.2e-07]
[1766237223227,0.011354,88114.0,88099.0,2.2e-07]
[1766237223425,0.20183892,88110.0,88099.0,2.2e-07]
[1766237224528,0.20183892,88110.0,88088.0,1.44836]
[1766237224828,0.0113553,88104.0,88083.0,0.0113579]
[1766237225522,0.0113548,88108.0,88083.0,0.0113579]
[1766237225723,0.00017022,88102.0,88085.0,0.00017022]
[1766237226630,0.00017022,88102.0,88086.0,0.0113576]
[1766237227531,0.00017022,88102.0,88086.0,0.0113176]
[1766237229120,0.00017022,88102.0,88085.0,0.00017022]
[1766237230532,0.00017022,88102.0,88089.0,0.0113571]
[1766237234225,0.00017022,88102.0,88085.0,0.01152782]
[1766237234434,0.00017022,88102.0,88085.0,0.01152792]
[1766237235433,0.00017022,88102.0,88085.0,0.00017022]
[1766237235630,0.20177899,88095.0,88085.0,2e-08]
[1766237236134,0.20177899,88095.0,88080.0,6e-08]
[1766237236331,0.0113572,88089.0,88080.0,6e-08]
[1766237236533,0.0399963,88096.0,88080.0,6e-08]
[1766237237136,8.658e-05,88095.0,88080.0,6e-08]
[1766237237838,0.0113585,88080.0,88057.0,0.0113613]
[1766237238027,0.20177899,88070.0,88057.0,0.0150413]
[1766237238228,0.21313749,88080.0,88057.0,0.0150413]
[1766237238744,0.00017032,88077.0,88060.0,0.00011372]
[1766237244127,0.00017032,88077.0,88063.0,0.0113605]
[1766237244345,0.00017032,88077.0,88060.0,0.00011372]
[1766237245533,0.20192064,88070.0,88060.0,0.00011372]
[1766237245733,8.664e-05,88069.0,88060.0,0.00011372]
[1766237247540,8.664e-05,88069.0,88060.0,3.72e-06]
[1766237247746,0.0113604,88065.0,88049.0,0.00184]
[1766237248042,0.0113615,88056.0,88035.0,1.44852]
[1766237248337,0.20192064,88050.0,88031.0,0.01070322]
[1766237248540,0.0113611,88059.0,88031.0,0.02206782]
[1766237248743,0.20192064,88050.0,88031.0,0.0113646]
[1766237249130,0.20192064,88050.0,88034.0,0.0113642]
[1766237251034,0.20192064,88050.0,88035.0,0.0113641]
[1766237251231,0.20192064,88080.0,88040.0,0.20192064]
[1766237251434,0.20192064,88060.0,88042.0,0.0113632]
[1766237252342,0.20192064,88060.0,88037.0,0.0113638]
[1766237252343,0.20209096,88060.0,88037.0,0.0113638]
[1766237252846,0.20192064,88050.0,88037.0,0.0113638]
[1766237253045,0.20209096,88060.0,88037.0,0.0113638]
[1766237253947,0.20209096,88060.0,88040.0,0.0113635]
[1766237255348,0.20209096,88060.0,88034.0,0.00017026]
[1766237256636,0.20209096,88060.0,87995.0,0.10082006]
[1766237256637,0.40384128,88044.0,87994.0,0.00188]
[1766237256838,0.20192064,88020.0,88002.0,0.0113684]
[1766237257243,0.20192064,88020.0,88002.0,0.0113683]
[1766237257443,0.20192064,88020.0,87994.0,0.00188]
[1766237257444,0.20192064,88020.0,87995.0,0.0113692]
[1766237257645,0.00017043,88016.0,88000.0,0.20192064]
[1766237258143,0.00017043,88016.0,88001.0,0.0113685]
[1766237258538,4.3e-07,88016.0,88001.0,0.0113685]
[1766237259654,4.3e-07,88016.0,88000.0,0.00017043]
[1766237260746,4.3e-07,88016.0,88000.0,0.01153913]
[1766237260934,0.02864,88026.0,88000.0,0.01153913]
[1766237262155,0.00017043,88022.0,88004.0,0.0113681]
[1766237262447,0.00017043,88022.0,88005.0,0.00372]
[1766237263238,0.30321372,88040.0,88005.0,0.00372]
[1766237263239,0.0113635,88041.0,88011.0,0.0113672]
[1766237263442,0.00368,88040.0,88011.0,0.0113672]
[1766237263643,0.00368,88040.0,88015.0,0.0113667]
[1766237263848,0.0113628,88046.0,88017.0,0.0113664]
[1766237264046,0.0113631,88044.0,88017.0,0.0113664]
[1766237264246,0.00017043,88039.0,88022.0,0.00017043]
[1766237268852,0.00017043,88039.0,88026.0,0.0113652]
[1766237269055,0.0113615,88057.0,88027.0,0.02864]
[1766237269245,0.0113617,88055.0,88033.0,0.0113644]
[1766237269448,0.0113617,88055.0,88029.0,0.0113649]
[1766237269853,0.02864,88058.0,88033.0,0.0113644]
[1766237270158,0.00017043,88054.0,88033.0,0.0113644]
[1766237272455,0.00017043,88054.0,88040.0,0.0113635]
[1766237272657,0.00017043,88054.0,88041.0,0.01296]
[1766237273163,0.00017043,88054.0,88041.0,0.0243233]
[1766237273355,0.0024,88064.0,88044.0,0.0113629]
[1766237273554,0.02687393,88063.0,88044.0,0.0113629]
[1766237273859,0.0400001,88067.0,88044.0,0.0113629]
[1766237274055,0.02687391,88066.0,88044.0,0.0113629]
[1766237274256,0.02687391,88065.0,88044.0,0.0113629]
[1766237274567,0.00017043,88063.0,88046.0,0.00017043]
[1766237274752,0.02687391,88062.0,88046.0,0.00017043]
[1766237277364,3e-08,88075.0,88047.0,0.11356667]
[1766237277558,0.0113567,88094.0,88060.0,0.30300924]
[1766237277867,0.30300924,88100.0,88061.0,0.0113607]
[1766237277868,0.0113577,88086.0,88061.0,0.0113607]
[1766237278060,0.30300924,88090.0,88063.0,0.0113605]
[1766237278459,0.00017033,88085.0,88068.0,0.00017033]
[1766237281572,0.0113579,88084.0,88068.0,0.00017033]
[1766237281766,0.00017033,88085.0,88068.0,0.00017033]
[1766237281967,0.011359,88076.0,88062.0,0.02864]
[1766237282565,0.30300924,88080.0,88062.0,0.02864]
[1766237282771,0.0113583,88081.0,88062.0,0.02864]
[1766237283072,0.0113583,88081.0,88063.0,0.00017033]
[1766237285363,0.20189863,88080.0,88063.0,0.01153083]
[1766237285772,0.02864,88082.0,88067.0,0.01136]
[1766237285973,0.20189863,88080.0,88067.0,0.01136]
[1766237286472,0.20189863,88080.0,88063.0,0.01153083]
[1766237288072,0.00017033,88085.0,88066.0,0.0113601]
[1766237289162,0.00017033,88085.0,88063.0,0.00017033]
[1766237289672,0.00017033,88085.0,88068.0,0.0113598]
[1766237290063,0.02881033,88085.0,88068.0,0.0113598]
[1766237290975,0.02881033,88085.0,88064.0,0.0113604]
[1766237292069,0.00017033,88085.0,88067.0,0.01136]
[1766237292277,0.02881033,88085.0,88067.0,0.01136]
[1766237295475,0.00017033,88085.0,88070.0,0.20189863]
[1766237295683,0.00017033,88085.0,88071.0,0.0113595]
[1766237296273,0.00017033,88085.0,88070.0,0.20189863]
[1766237297373,0.20189863,88080.0,88066.0,0.02864]
[1766237297567,0.0113586,88079.0,88066.0,0.02864]
[1766237298273,0.20189863,88080.0,88066.0,0.02864]
[1766237301484,0.00017033,88085.0,88066.0,0.02864]
[1766237301789,0.20189863,88080.0,88066.0,0.02864]
[1766237305379,0.0286,88082.0,88066.0,0.02864]
[1766237307884,0.20188752,88080.0,88066.0,0.02864]
[1766237308286,0.0286,88082.0,88066.0,0.02864]
[1766237318380,0.00017033,88085.0,88070.0,0.0113596]
[1766237318585,0.02877033,88085.0,88070.0,0.0113596]
[1766237319988,0.00017033,88085.0,88070.0,0.0113596]
[1766237321090,0.00017033,88085.0,88066.0,0.02864]
[1766237321091,0.00017033,88085.0,88074.0,0.0113591]
[1766237323500,0.00017033,88085.0,88070.0,0.0113596]
[1766237326089,0.00017033,88085.0,88074.0,0.0113591]
[1766237329797,0.00017033,88085.0,88066.0,0.0896491]
[1766237329998,3e-08,88085.0,88079.0,0.0113585]
[1766237330299,3e-08,88085.0,88079.0,0.0113584]
[1766237330888,3e-08,88085.0,88082.0,0.011358]
[1766237331396,0.21324212,88110.0,88086.0,0.0113575]
[1766237331595,0.05335557,88109.0,88089.0,0.0113572]
[1766237331804,0.02475557,88108.0,88092.0,0.0113567]
[1766237332299,0.0286,88112.0,88092.0,0.0113567]
[1766237332499,0.02491307,88111.0,88093.0,0.00017033]
[1766237332692,0.00017033,88111.0,88093.0,0.00017033]
[1766237334296,0.0113546,88110.0,88093.0,0.00017033]
[1766237335503,0.00017033,88111.0,88093.0,0.00017033]
[1766237337400,0.00017033,88111.0,88094.0,0.0113565]
[1766237338101,0.00017033,88111.0,88093.0,3.3e-07]
[1766237338400,0.0113577,88086.0,88054.0,0.0113617]
[1766237338592,0.20188752,88082.0,88054.0,0.0113617]
[1766237338796,0.21324572,88082.0,88055.0,0.00368]
[1766237339103,0.0113582,88082.0,88055.0,0.00368]
[1766237339306,0.00017033,88077.0,88060.0,0.00017033]
[1766237339601,0.0113598,88069.0,88055.0,0.00368]
[1766237339908,0.0113604,88065.0,88044.0,0.00184]
[1766237340702,0.0113604,88065.0,88046.0,0.00017033]
[1766237341207,0.0286,88068.0,88046.0,0.00017033]
[1766237341507,0.0113601,88067.0,88046.0,0.00017033]
[1766237342006,0.23055041,88070.0,88046.0,0.00017033]
[1766237342204,0.0113598,88069.0,88046.0,0.00017033]
[1766237343400,0.00017033,88077.0,88046.0,0.00017033]
[1766237343401,0.011359,88075.0,88047.0,0.0113626]
[1766237343706,0.01288,88074.0,88050.0,0.20195041]
[1766237343907,0.01288,88074.0,88046.0,0.01153293]
[1766237345200,0.01288,88074.0,88050.0,0.0113622]
[1766237345410,0.01288,88074.0,88051.0,0.0286]
[1766237346807,0.0286,88073.0,88051.0,0.0286]
[1766237347009,0.0286,88073.0,88053.0,0.0113618]
[1766237348306,0.0286,88072.0,88053.0,0.0113618]
[1766237350305,0.0286,88072.0,88051.0,0.0286]
[1766237351714,0.0286,88072.0,88052.0,0.0113619]
[1766237355417,0.0286,88074.0,88053.0,0.0113618]
[1766237355812,0.01152913,88077.0,88053.0,0.0113618]
[1766237356015,0.0286,88076.0,88056.0,0.0113614]